bitfinex-derivatives/quotes_BTCF0:USTF0_20250320
["timestamp","ask_amount","ask_price","bid_price","bid_amount"]
[1742456489440,0.2132839,85847.0,85846.0,0.0934426]
[1742456491151,0.2132839,85847.0,85846.0,0.003]
[1742456491532,0.1550423,85847.0,85843.0,0.01594212]
[1742456491733,0.1550423,85847.0,85840.0,0.1164928]
[1742456491734,0.1164921,85841.0,85840.0,0.1164928]
[1742456491941,0.1164921,85841.0,85840.0,0.12529244]
[1742456492447,0.1164921,85841.0,85840.0,0.14036275]
[1742456492448,0.1814921,85841.0,85840.0,0.14036275]
[1742456493239,0.1814921,85841.0,85840.0,0.02686995]
[1742456493641,0.1794921,85841.0,85840.0,0.14336335]
[1742456494149,0.1794921,85841.0,85840.0,0.14340335]
[1742456494649,0.1794921,85841.0,85840.0,0.14640335]
[1742456494849,0.38893691,85841.0,85840.0,0.14640335]
[1742456495749,0.38893691,85841.0,85840.0,0.02990995]
[1742456496066,0.38893691,85841.0,85840.0,0.02111031]
[1742456497543,0.38893691,85841.0,85840.0,0.00604]
[1742456497948,0.38893691,85841.0,85840.0,0.006]
[1742456498245,0.1164961,85838.0,85837.0,0.00017464]
[1742456498434,0.1164961,85838.0,85837.0,0.11667214]
[1742456498642,0.1164961,85838.0,85837.0,0.00017464]
[1742456498952,0.1164961,85838.0,85837.0,0.0153486]
[1742456499149,0.1794961,85838.0,85837.0,0.0153486]
[1742456499357,0.1747577,85833.0,85832.0,0.1165033]
[1742456499652,0.5315577,85833.0,85832.0,0.1165033]
[1742456500853,0.5325577,85833.0,85832.0,0.1524033]
[1742456501361,0.5325577,85833.0,85832.0,0.16689458]
[1742456502541,0.5325577,85833.0,85832.0,0.13599458]
[1742456503552,0.5325577,85833.0,85832.0,0.01949128]
[1742456504250,0.5315577,85833.0,85832.0,0.01449128]
[1742456504559,0.5315577,85833.0,85832.0,0.001]
[1742456504857,0.1165043,85832.0,85831.0,4e-05]
[1742456505153,0.0582535,85831.0,85827.0,0.00862673]
[1742456505360,0.1165097,85828.0,85827.0,0.2330193]
[1742456505549,0.2291497,85828.0,85827.0,0.1165094]
[1742456505749,0.2291497,85828.0,85827.0,0.13080262]
[1742456505944,0.2261497,85828.0,85827.0,0.13080262]
[1742456506645,0.2261497,85828.0,85827.0,0.01729322]
[1742456507045,0.2261497,85828.0,85827.0,0.16490432]
[1742456507451,0.2261497,85828.0,85827.0,0.04839322]
[1742456508250,0.2261497,85828.0,85827.0,0.003]
[1742456509464,0.2261497,85828.0,85827.0,0.0346]
[1742456509967,0.2261497,85828.0,85827.0,0.0316]
[1742456510157,0.11264,85828.0,85825.0,4e-05]
[1742456510363,0.4773124,85826.0,85825.0,4e-05]
[1742456510759,0.5407124,85826.0,85825.0,0.0144202]
[1742456511079,0.5407124,85826.0,85825.0,0.130934]
[1742456511252,0.6533524,85826.0,85825.0,0.130934]
[1742456511452,0.5100124,85826.0,85825.0,0.192934]
[1742456512655,0.5100124,85826.0,85825.0,0.0764202]
[1742456513068,0.5110124,85826.0,85825.0,0.0764202]
[1742456513460,0.5110124,85826.0,85825.0,0.192934]
[1742456513858,0.5418124,85826.0,85825.0,0.192934]
[1742456514058,0.5418124,85826.0,85825.0,0.162534]
[1742456515366,0.5418124,85826.0,85825.0,0.193334]
[1742456515563,0.5418124,85826.0,85825.0,0.0460202]
[1742456515758,0.5418124,85826.0,85825.0,0.0459802]
[1742456516865,0.5418124,85826.0,85825.0,0.162494]
[1742456518965,0.1810124,85826.0,85825.0,0.162494]
[1742456519271,0.5418124,85826.0,85825.0,0.162494]
[1742456524070,0.5418124,85826.0,85825.0,0.194394]
[1742456525566,0.5418124,85826.0,85825.0,0.224494]
[1742456528279,0.5418124,85826.0,85825.0,0.0760802]
[1742456530587,0.5418124,85826.0,85825.0,0.0617]
[1742456533080,0.65929179,85826.0,85825.0,0.0617]
[1742456533774,0.65829179,85826.0,85825.0,0.0617]
[1742456542897,0.65829179,85826.0,85825.0,0.0927]
[1742456546495,0.59479179,85826.0,85825.0,0.0927]
[1742456546688,0.59479179,85826.0,85825.0,0.2092138]
[1742456546889,0.59479179,85826.0,85825.0,0.0927]
[1742456547290,0.62809179,85826.0,85825.0,0.0927]
[1742456547498,0.65889179,85826.0,85825.0,0.0927]
[1742456547798,0.5414124,85826.0,85825.0,0.0927]
[1742456548389,0.4773124,85826.0,85825.0,0.0927]
[1742456548993,0.4773124,85826.0,85825.0,0.2092138]
[1742456549395,0.4773124,85826.0,85825.0,0.0927]
[1742456549602,0.4773124,85826.0,85825.0,0.2092138]
[1742456550101,0.4773124,85826.0,85825.0,0.0927]
[1742456551393,0.4773124,85826.0,85825.0,0.2092138]
[1742456554397,0.20972084,85829.0,85826.0,0.0582562]
[1742456554598,0.524798,85837.0,85836.0,0.1164989]
[1742456555509,0.524798,85837.0,85836.0,0.1792989]
[1742456557309,0.116498,85837.0,85836.0,0.1792989]
[1742456558614,0.63898656,85840.0,85838.0,0.1164961]
[1742456558798,0.63834656,85840.0,85839.0,0.1786948]
[1742456559903,0.63934656,85840.0,85839.0,0.1786948]
[1742456560204,0.75583996,85840.0,85839.0,0.1786948]
[1742456560503,0.3618,85840.0,85839.0,0.1786948]
[1742456560705,0.4782934,85840.0,85839.0,0.1786948]
[1742456561309,0.4792934,85840.0,85839.0,0.1786948]
[1742456562199,0.4792934,85840.0,85839.0,0.1786831]
[1742456563314,0.1184934,85840.0,85839.0,0.1786831]
[1742456565107,0.1184934,85840.0,85839.0,0.2912831]
[1742456565313,0.002,85840.0,85839.0,0.2912831]
[1742456565618,0.17454545,85846.0,85845.0,0.116475]
[1742456565915,0.29097905,85846.0,85845.0,0.116475]
[1742456566315,0.17450545,85846.0,85845.0,0.116475]
[1742456566614,0.17450545,85846.0,85845.0,0.178475]
[1742456566919,0.17650545,85846.0,85845.0,0.178475]
[1742456568317,0.17850545,85846.0,85845.0,0.178475]
[1742456568706,4e-05,85852.0,85851.0,0.1164669]
[1742456568913,4e-05,85852.0,85851.0,0.2290669]
[1742456569220,4e-05,85856.0,85853.0,0.1164641]
[1742456569723,0.148656,85859.0,85858.0,0.1164574]
[1742456570112,0.148656,85859.0,85858.0,0.2290574]
[1742456570513,0.180656,85859.0,85858.0,0.2913574]
[1742456570816,0.180656,85859.0,85858.0,0.30511896]
[1742456571212,0.185656,85859.0,85858.0,0.30511896]
[1742456571411,0.185656,85859.0,85858.0,0.01376156]
[1742456571626,0.1164628,85854.0,85853.0,0.032]
[1742456571819,0.1164628,85854.0,85853.0,0.1446]
[1742456572427,0.1785628,85854.0,85853.0,0.1446]
[1742456572920,0.1785628,85854.0,85853.0,0.1586525]
[1742456573114,0.1825628,85854.0,85853.0,0.0140525]
[1742456573311,0.1164669,85851.0,85850.0,0.1165082]
[1742456573726,0.1164669,85851.0,85850.0,0.1472082]
[1742456573927,0.1164669,85851.0,85850.0,0.03074]
[1742456574226,0.1799669,85851.0,85850.0,0.1472082]
[1742456574425,0.1829669,85851.0,85850.0,0.04429652]
[1742456574627,0.1829669,85851.0,85850.0,0.16076472]
[1742456574823,0.1829669,85851.0,85850.0,0.04429652]
[1742456575126,0.1829669,85851.0,85850.0,0.01359652]
[1742456575840,0.1829669,85851.0,85850.0,0.01355652]
[1742456576126,0.1164709,85848.0,85847.0,0.1165117]
[1742456576327,0.1164709,85848.0,85847.0,0.1473117]
[1742456576623,0.1805709,85848.0,85847.0,0.04499637]
[1742456577429,0.1835709,85848.0,85847.0,0.04499637]
[1742456577731,0.1865709,85848.0,85847.0,0.04495637]
[1742456578231,0.1866109,85848.0,85847.0,0.04495637]
[1742456578432,0.1866109,85848.0,85847.0,0.04511637]
[1742456578727,0.1866109,85848.0,85847.0,0.16158867]
[1742456579120,0.1866109,85848.0,85847.0,0.04511637]
[1742456579524,0.1866109,85848.0,85847.0,0.01431637]
[1742456579831,0.5474109,85848.0,85847.0,0.01431637]
[1742456581627,0.1164791,85842.0,85841.0,4e-05]
[1742456581832,0.1164913,85833.0,85832.0,0.3925]
[1742456582637,0.1164913,85833.0,85832.0,0.52278876]
[1742456583032,0.1778913,85833.0,85832.0,0.52278876]
[1742456583438,0.1778913,85833.0,85832.0,0.52378876]
[1742456584541,0.1778913,85833.0,85832.0,0.52478876]
[1742456587939,0.1778913,85833.0,85832.0,0.55698876]
[1742456588442,0.1778913,85833.0,85832.0,0.40829616]
[1742456588845,0.1778913,85833.0,85832.0,0.52478876]
[1742456589044,0.1778913,85833.0,85832.0,0.55538876]
[1742456589640,0.0614,85833.0,85832.0,0.55538876]
[1742456590029,0.1778913,85833.0,85832.0,0.57020049]
[1742456590640,0.1465913,85833.0,85832.0,0.57020049]
[1742456594550,0.0301,85833.0,85832.0,0.57020049]
[1742456595141,0.0615,85833.0,85832.0,0.57020049]
[1742456596146,0.1779913,85833.0,85832.0,0.57020049]
[1742456596449,0.2112913,85833.0,85832.0,0.57020049]
[1742456596852,0.2112913,85833.0,85832.0,0.55538876]
[1742456597546,0.2112913,85833.0,85832.0,0.19458876]
[1742456598754,0.2112913,85833.0,85832.0,0.20943691]
[1742456600046,0.2112913,85833.0,85832.0,0.20941423]
[1742456600455,0.0615,85833.0,85832.0,0.20941423]
[1742456600853,0.0316,85839.0,85838.0,0.1164845]
[1742456601056,0.1480831,85839.0,85838.0,0.1164845]
[1742456601273,0.1480831,85839.0,85838.0,0.1481845]
[1742456601670,0.1475818,85840.0,85839.0,0.1164831]
[1742456601864,0.1475818,85840.0,85839.0,0.1481831]
[1742456602059,0.1784818,85840.0,85839.0,0.1801831]
[1742456603374,0.1794818,85840.0,85839.0,0.1801831]
[1742456604160,0.063,85840.0,85839.0,0.1801831]
[1742456604864,0.1794818,85840.0,85839.0,0.1801831]
[1742456605759,0.1794818,85840.0,85828.0,0.36088]
[1742456605760,0.1164913,85833.0,85832.0,0.13028596]
[1742456605966,0.1164913,85833.0,85832.0,0.01474627]
[1742456606160,0.1164926,85832.0,85831.0,0.147294]
[1742456606367,0.1803926,85832.0,85831.0,0.16203791]
[1742456607066,0.2105926,85832.0,85831.0,0.19433791]
[1742456607670,0.2105926,85832.0,85831.0,0.19533791]
[1742456608173,0.2105926,85832.0,85831.0,0.19535137]
[1742456610265,0.2105926,85832.0,85831.0,0.20946944]
[1742456611575,0.0961,85832.0,85831.0,0.20946944]
[1742456612175,0.2125926,85832.0,85831.0,0.20946944]
[1742456613073,0.1164858,85838.0,85836.0,0.0582429]
[1742456613383,0.238928,85838.0,85837.0,0.19633511]
[1742456614381,0.238928,85838.0,85837.0,0.1815845]
[1742456616183,0.238928,85838.0,85837.0,0.0651]
[1742456616487,0.238928,85838.0,85837.0,0.1815858]
[1742456623286,0.0642,85838.0,85837.0,0.1815858]
[1742456623492,0.1806845,85838.0,85837.0,0.2143858]
[1742456627490,0.1164845,85838.0,85837.0,0.2143858]
[1742456628192,0.1465845,85838.0,85837.0,0.2143858]
[1742456629787,0.1795845,85838.0,85837.0,0.2143858]
[1742456631286,0.1164845,85838.0,85837.0,0.2143858]
[1742456631694,0.1486845,85838.0,85837.0,0.2143858]
[1742456632093,0.1796845,85838.0,85837.0,0.2143858]
[1742456632595,0.1486845,85838.0,85837.0,0.2143858]
[1742456634089,0.1813845,85838.0,85837.0,0.2143858]
[1742456635085,0.1813845,85838.0,85837.0,0.3269458]
[1742456637595,0.1813845,85838.0,85837.0,0.0651]
[1742456637986,0.1813845,85838.0,85837.0,0.1815858]
[1742456638900,0.1813845,85838.0,85837.0,0.1484858]
[1742456639596,0.1813845,85838.0,85833.0,0.20930106]
[1742456639597,0.0582429,85837.0,85833.0,0.20930106]
[1742456639801,0.0582443,85835.0,85834.0,0.0619]
[1742456640298,0.1212443,85835.0,85834.0,0.0301]
[1742456641002,0.1212443,85835.0,85834.0,0.1164886]
[1742456641188,0.1212443,85835.0,85834.0,0.1174886]
[1742456643295,0.1212443,85835.0,85834.0,0.1504886]
[1742456643602,0.1212443,85835.0,85834.0,0.1829886]
[1742456649911,0.1212443,85835.0,85834.0,0.0665]
[1742456654509,0.1212443,85835.0,85834.0,0.1829899]
[1742456659813,0.1212443,85835.0,85834.0,0.0665]
[1742456660407,0.1212443,85835.0,85834.0,0.1829899]
[1742456661515,0.1212443,85835.0,85834.0,0.0665]
[1742456664020,0.1164913,85833.0,85832.0,4e-05]
[1742456664510,0.2110913,85833.0,85832.0,4e-05]
[1742456664707,0.1164926,85832.0,85831.0,0.01412483]
[1742456664925,0.1164926,85832.0,85831.0,0.0617]
[1742456665107,0.1793926,85832.0,85831.0,0.06174]
[1742456666007,0.1783926,85832.0,85831.0,0.06174]
[1742456666206,0.1783926,85832.0,85831.0,0.07490218]
[1742456666410,0.1783926,85832.0,85831.0,0.19139618]
[1742456666605,0.1783926,85832.0,85831.0,0.19239618]
[1742456667016,0.1783926,85832.0,85831.0,0.07590218]
[1742456670417,0.1783926,85832.0,85831.0,0.19239618]
[1742456670418,0.0305,85832.0,85831.0,0.19239618]
[1742456670623,0.01108,85833.0,85832.0,0.1164926]
[1742456671221,0.01108,85833.0,85832.0,0.1801926]
[1742456671614,0.04258,85833.0,85832.0,0.1801926]
[1742456671917,0.2173182,85833.0,85832.0,0.1801926]
[1742456674319,0.04258,85833.0,85832.0,0.1801926]
[1742456674519,0.01108,85833.0,85832.0,0.1801926]
[1742456674721,0.1275713,85833.0,85832.0,0.1801926]
[1742456676828,0.1598713,85833.0,85832.0,0.1801926]
[1742456677021,0.01108,85833.0,85832.0,0.1801926]
[1742456677222,0.00060001,85835.0,85834.0,0.1164899]
[1742456677423,0.1164839,85839.0,85838.0,0.1164845]
[1742456677815,0.1164839,85839.0,85838.0,0.2096845]
[1742456678018,0.1487839,85839.0,85838.0,0.2096845]
[1742456679926,0.1497839,85839.0,85838.0,0.2096845]
[1742456680830,0.1818839,85839.0,85838.0,0.2096845]
[1742456685925,0.1818839,85839.0,85838.0,0.0624]
[1742456686134,0.2144839,85839.0,85838.0,0.0624]
[1742456687840,0.2144839,85839.0,85838.0,0.0322]
[1742456689632,0.0582422,85838.0,85834.0,0.1164895]
[1742456689834,0.1164886,85835.0,85834.0,0.1164895]
[1742456690029,0.1164886,85835.0,85834.0,0.1477895]
[1742456690233,0.1789886,85835.0,85834.0,0.1477895]
[1742456692934,0.1164913,85833.0,85832.0,4e-05]
[1742456693329,0.1790913,85833.0,85832.0,4e-05]
[1742456693839,0.1790913,85833.0,85832.0,0.03154]
[1742456694144,0.1790913,85833.0,85832.0,0.1480326]
[1742456694330,0.0626,85833.0,85832.0,0.1479926]
[1742456694841,0.1790913,85833.0,85832.0,0.1479926]
[1742456703250,0.1790913,85833.0,85832.0,0.16269977]
[1742456703453,0.1790913,85833.0,85832.0,0.1626997]
[1742456703646,0.1790913,85833.0,85832.0,0.1479926]
[1742456704148,0.0626,85833.0,85832.0,0.1479926]
[1742456704349,0.11665514,85841.0,85840.0,0.1164818]
[1742456704648,0.00060001,85853.0,85846.0,0.1164736]
[1742456704843,0.0306,85854.0,85847.0,0.1164723]
[1742456705048,0.0306,85854.0,85847.0,0.49221423]
[1742456705352,4e-05,85850.0,85849.0,0.1164696]
[1742456705657,0.31271984,85867.0,85849.0,0.1164696]
[1742456705658,0.31271984,85867.0,85856.0,0.1164601]
[1742456705948,0.17243966,85857.0,85856.0,0.85456661]
[1742456706151,0.13164984,85857.0,85856.0,0.74204661]
[1742456706342,0.13164984,85857.0,85856.0,0.60456661]
[1742456706534,0.09086002,85857.0,85856.0,0.75526661]
[1742456707148,0.00017474,85858.0,85857.0,0.1164587]
[1742456707450,4e-05,85860.0,85859.0,0.116456]
[1742456707648,4e-05,85860.0,85859.0,0.396456]
[1742456707945,0.52212909,85872.0,85871.0,0.1164397]
[1742456708139,0.52212909,85872.0,85871.0,0.2289597]
[1742456708838,0.52212909,85872.0,85871.0,0.2896597]
[1742456709041,0.52212909,85872.0,85871.0,0.30241426]
[1742456709344,0.52212909,85872.0,85871.0,0.31123331]
[1742456709850,0.52712909,85872.0,85871.0,0.31123331]
[1742456710251,0.52712909,85872.0,85871.0,0.19479361]
[1742456710748,0.56252909,85872.0,85871.0,0.05217361]
[1742456710953,0.56252909,85872.0,85871.0,0.0306]
[1742456711254,0.1164397,85871.0,85870.0,0.1164401]
[1742456711642,0.0582239,85866.0,85860.0,0.0625081]
[1742456711851,0.0582239,85866.0,85863.0,0.22910484]
[1742456711852,0.1164492,85864.0,85863.0,0.22910484]
[1742456713143,0.1204492,85864.0,85863.0,0.22910484]
[1742456713446,0.1204492,85864.0,85863.0,0.24247833]
[1742456714247,0.1244492,85864.0,85863.0,0.24247833]
[1742456715039,0.008,85864.0,85863.0,0.24247833]
[1742456715444,0.008,85864.0,85863.0,0.25111741]
[1742456716246,0.1244492,85864.0,85863.0,0.25111741]
[1742456718846,0.008,85864.0,85863.0,0.25111741]
[1742456719640,0.1244492,85864.0,85863.0,0.25111741]
[1742456721245,0.1244492,85864.0,85863.0,0.25111791]
[1742456721445,0.1244492,85864.0,85863.0,0.13466731]
[1742456721651,0.1244492,85864.0,85863.0,0.25111791]
[1742456722748,0.1556492,85864.0,85863.0,0.25111791]
[1742456722947,0.1556492,85864.0,85863.0,0.02218731]
[1742456723347,0.1556492,85864.0,85863.0,0.13863791]
[1742456723960,0.1556492,85864.0,85863.0,0.17063791]
[1742456725551,0.1556492,85864.0,85863.0,0.05418731]
[1742456725852,0.1880492,85864.0,85863.0,0.05418731]
[1742456726353,0.1880492,85864.0,85863.0,0.17063791]
[1742456726559,0.1880492,85864.0,85863.0,0.20073791]
[1742456726959,0.1880492,85864.0,85863.0,0.02218731]
[1742456727350,0.1880492,85864.0,85863.0,0.13863791]
[1742456728156,0.0716,85864.0,85863.0,0.20283791]
[1742456728459,0.1880492,85864.0,85863.0,0.19419883]
[1742456731957,0.1880492,85864.0,85863.0,0.07774823]
[1742456732162,0.1880492,85864.0,85863.0,0.01354823]
[1742456733554,0.5488492,85864.0,85863.0,0.01354823]
[1742456734260,0.5488492,85864.0,85863.0,0.12999883]
[1742456734565,0.5488492,85864.0,85863.0,0.01354823]
[1742456737961,0.5488492,85864.0,85863.0,0.04404823]
[1742456738668,0.5488492,85864.0,85863.0,0.01354823]
[1742456739977,0.5488492,85864.0,85863.0,0.04544823]
[1742456740373,0.1164655,85852.0,85850.0,0.1164679]
[1742456740578,0.1164655,85852.0,85851.0,0.1475669]
[1742456740779,0.1164655,85852.0,85851.0,0.16039782]
[1742456740978,0.1488655,85852.0,85851.0,0.16039782]
[1742456741772,0.1794655,85852.0,85851.0,0.19229782]
[1742456742772,0.1804655,85852.0,85851.0,0.19229782]
[1742456742974,0.1814655,85852.0,85851.0,0.19229782]
[1742456743178,0.1814655,85852.0,85851.0,0.07583092]
[1742456743579,0.1814655,85852.0,85851.0,0.04473092]
[1742456744678,0.1814655,85852.0,85851.0,0.01283092]
[1742456744875,0.1164696,85849.0,85848.0,0.03154]
[1742456745077,0.1164709,85848.0,85847.0,0.0325]
[1742456745384,0.1164723,85847.0,85846.0,0.20930106]
[1742456745771,0.1778723,85847.0,85846.0,0.20930106]
[1742456746483,0.1778723,85847.0,85846.0,0.32577466]
[1742456746693,0.1778723,85847.0,85846.0,0.1164736]
[1742456747280,0.1778723,85847.0,85846.0,0.0137506]
[1742456747676,0.1778723,85847.0,85846.0,0.1302242]
[1742456749979,0.1778723,85847.0,85846.0,0.0137506]
[1742456750585,0.1778723,85847.0,85846.0,0.0765506]
[1742456754393,0.1778723,85847.0,85846.0,0.001]
[1742456755194,0.1778723,85847.0,85846.0,0.01376974]
[1742456755885,0.1778723,85847.0,85846.0,0.001]
[1742456757194,0.0582402,85841.0,85837.0,4e-05]
[1742456757492,0.4772845,85838.0,85837.0,4e-05]
[1742456757787,0.4772845,85838.0,85836.0,0.01263296]
[1742456757788,0.1164858,85837.0,85836.0,0.01263296]
[1742456757995,0.1164886,85835.0,85834.0,0.0643]
[1742456758595,0.1144886,85835.0,85834.0,0.0643]
[1742456758983,0.1783886,85835.0,85834.0,0.0643]
[1742456760387,0.1783886,85835.0,85834.0,0.07722443]
[1742456760701,0.1164913,85833.0,85832.0,0.0316]
[1742456760896,0.2289713,85833.0,85832.0,0.0316]
[1742456761085,0.1164926,85832.0,85831.0,0.01287373]
[1742456761286,0.116494,85831.0,85830.0,0.0303]
[1742456761498,0.509294,85831.0,85830.0,0.0625]
[1742456761694,0.571494,85831.0,85830.0,0.0625]
[1742456762991,0.1164953,85830.0,85829.0,4e-05]
[1742456763493,0.1769953,85830.0,85829.0,4e-05]
[1742456764095,0.2894753,85830.0,85829.0,4e-05]
[1742456764287,0.2894753,85830.0,85829.0,0.06384]
[1742456765899,0.2894753,85830.0,85829.0,4e-05]
[1742456766698,0.1164981,85828.0,85827.0,0.061]
[1742456772301,0.1816981,85828.0,85827.0,0.061]
[1742456773798,0.2941781,85828.0,85827.0,0.061]
[1742456779897,0.1816981,85828.0,85827.0,0.061]
[1742456780102,0.2941781,85828.0,85827.0,0.061]
[1742456784111,0.1164981,85828.0,85827.0,0.1774994]
[1742456786404,0.0582483,85830.0,85829.0,0.1164967]
[1742456786709,0.3608,85831.0,85827.0,0.119249]
[1742456786710,0.477294,85831.0,85830.0,0.1164953]
[1742456787513,0.116494,85831.0,85830.0,0.1470953]
[1742456795118,0.3608,85838.0,85833.0,0.0582449]
[1742456795321,0.4772845,85838.0,85837.0,0.1164858]
[1742456795707,0.1164845,85838.0,85837.0,0.1164858]
[1742456796114,0.1164845,85838.0,85837.0,0.1488858]
[1742456798025,0.1174845,85838.0,85837.0,0.1488858]
[1742456798921,0.1184845,85838.0,85837.0,0.1488858]
[1742456799325,0.001,85838.0,85837.0,0.1488858]
[1742456799520,0.00017474,85841.0,85840.0,0.1164818]
[1742456800027,0.00017474,85841.0,85840.0,0.1785818]
[1742456800228,0.11665514,85841.0,85840.0,0.1785818]
[1742456800618,0.00017474,85841.0,85840.0,0.1785818]
[1742456801424,0.00117474,85841.0,85840.0,0.1785818]
[1742456801630,0.11765514,85841.0,85840.0,0.1785818]
[1742456802519,0.11865514,85841.0,85840.0,0.1785818]
[1742456802921,0.00217474,85841.0,85840.0,0.1785818]
[1742456804314,0.11865514,85841.0,85840.0,0.1785818]
[1742456804518,0.00217474,85841.0,85840.0,0.1785818]
[1742456806334,0.11865514,85841.0,85840.0,0.1785818]
[1742456806632,0.00217474,85841.0,85840.0,0.1785818]
[1742456806831,0.03327474,85841.0,85840.0,0.1785818]
[1742456807032,0.00217474,85841.0,85840.0,0.1785818]
[1742456809138,0.00070526,85841.0,85840.0,0.1785818]
[1742456809630,0.11718566,85841.0,85840.0,0.1785818]
[1742456811234,0.17958566,85841.0,85840.0,0.1785818]
[1742456812926,0.06310526,85841.0,85840.0,0.1785818]
[1742456813335,0.17958566,85841.0,85840.0,0.1785818]
[1742456813529,0.06310526,85841.0,85840.0,0.1785818]
[1742456817238,0.17958566,85841.0,85840.0,0.1785818]
[1742456817941,0.06310526,85841.0,85840.0,0.1785818]
[1742456819737,0.00070526,85841.0,85840.0,0.1785818]
[1742456823428,0.00070526,85841.0,85840.0,0.5393818]
[1742456823633,0.03110526,85841.0,85840.0,0.5393818]
[1742456824335,4e-05,85842.0,85841.0,0.1164804]
[1742456824642,4e-05,85842.0,85841.0,0.1802804]
[1742456825634,0.00104,85842.0,85841.0,0.1802804]
[1742456826326,4e-05,85847.0,85846.0,0.1164736]
[1742456826735,0.00017474,85849.0,85848.0,0.1164709]
[1742456826937,0.00017474,85849.0,85848.0,0.2289109]
[1742456827140,0.00021474,85849.0,85848.0,0.2921109]
[1742456829340,0.00321474,85849.0,85848.0,0.2921109]
[1742456829543,0.00621474,85849.0,85848.0,0.2921109]
[1742456829940,0.03721474,85849.0,85848.0,0.2921109]
[1742456830745,0.15368434,85849.0,85848.0,0.1490709]
[1742456830939,0.15368434,85849.0,85848.0,0.2614709]
[1742456831134,0.18568434,85849.0,85848.0,0.2614709]
[1742456831749,0.18568434,85849.0,85848.0,0.2288709]
[1742456832946,0.18568434,85849.0,85848.0,0.2604709]
[1742456833759,0.18568434,85849.0,85848.0,0.2929709]
[1742456834140,0.06921474,85849.0,85848.0,0.2929709]
[1742456836234,0.06921474,85849.0,85848.0,0.2604709]
[1742456836439,0.06921474,85849.0,85848.0,0.2929709]
[1742456837837,0.03821474,85849.0,85848.0,0.2929709]
[1742456838338,0.15468434,85849.0,85848.0,0.2929709]
[1742456838841,0.15464434,85849.0,85848.0,0.2929709]
[1742456840350,0.03817474,85849.0,85848.0,0.2929709]
[1742456842054,0.15464434,85849.0,85848.0,0.2929709]
[1742456842250,0.03817474,85849.0,85848.0,0.2929709]
[1742456844244,0.15464434,85849.0,85848.0,0.2929709]
[1742456844649,0.18604434,85849.0,85848.0,0.2929709]
[1742456846553,0.06957474,85849.0,85848.0,0.2929709]
[1742456848156,0.03817474,85849.0,85848.0,0.2929709]
[1742456848345,0.00617474,85849.0,85848.0,0.2929709]
[1742456848763,0.00617474,85849.0,85848.0,0.30748426]
[1742456849255,4e-05,85856.0,85848.0,0.30748426]
[1742456849256,0.0308,85855.0,85854.0,0.1164628]
[1742456849449,0.0308,85855.0,85854.0,0.58717616]
[1742456849652,4e-05,85856.0,85855.0,0.1164614]
[1742456849849,4e-05,85856.0,85855.0,0.30787476]
[1742456851258,0.00504,85856.0,85855.0,0.30787476]
[1742456851755,0.00504,85856.0,85855.0,0.30788113]
[1742456851957,0.00504,85856.0,85855.0,0.39788113]
[1742456852157,0.00504,85856.0,85855.0,0.30788113]
[1742456852563,0.00504,85856.0,85855.0,0.32057017]
[1742456852744,0.00904,85856.0,85855.0,0.30605044]
[1742456854453,0.00904,85856.0,85855.0,0.58384316]
[1742456857150,0.00904,85856.0,85855.0,0.30605044]
[1742456857862,0.00017474,85864.0,85859.0,0.0582273]
[1742456858062,0.00021474,85864.0,85863.0,0.1164506]
[1742456858258,0.00021474,85864.0,85863.0,0.33888512]
[1742456859056,0.00521474,85864.0,85863.0,0.33888512]
[1742456859260,0.03621474,85864.0,85863.0,0.33888512]
[1742456859656,0.00521474,85864.0,85863.0,0.33888512]
[1742456860158,0.00521474,85864.0,85863.0,0.34761545]
[1742456860761,0.00517474,85864.0,85863.0,0.34761545]
[1742456861067,0.01117474,85864.0,85863.0,0.34761545]
[1742456861270,0.01117474,85864.0,85863.0,0.57761545]
[1742456861462,4e-05,85865.0,85864.0,0.1164492]
[1742456861659,0.031,85870.0,85869.0,0.1164424]
[1742456861860,0.031,85870.0,85869.0,0.49171692]
[1742456862673,0.031,85870.0,85869.0,0.55471692]
[1742456863457,0.033,85870.0,85869.0,0.55471692]
[1742456863872,0.033,85870.0,85869.0,0.5402424]
[1742456864060,0.033,85870.0,85869.0,0.55496321]
[1742456864466,0.034,85870.0,85869.0,0.55496321]
[1742456865372,0.034,85870.0,85869.0,0.5402424]
[1742456865962,0.034,85870.0,85869.0,0.6526024]
[1742456872066,0.034,85870.0,85869.0,0.5402424]
[1742456872272,0.1504411,85870.0,85869.0,0.1164424]
[1742456872780,0.1809411,85870.0,85869.0,0.1164424]
[1742456872985,0.0645,85870.0,85869.0,0.1164424]
[1742456873673,0.0645,85870.0,85869.0,0.2606024]
[1742456873879,0.0645,85870.0,85869.0,0.6543024]
[1742456876582,0.0645,85870.0,85869.0,0.6864024]
[1742456876583,0.034,85870.0,85869.0,0.6864024]
[1742456876788,0.0657,85870.0,85869.0,0.6864024]
[1742456880983,0.02492718,85870.0,85869.0,0.6864024]
[1742456881381,0.01619436,85874.0,85873.0,0.116437]
[1742456881582,0.01619436,85874.0,85873.0,0.179637]
[1742456881782,4e-05,85877.0,85876.0,0.1164329]
[1742456882092,4e-05,85877.0,85876.0,0.2287929]
[1742456882280,4e-05,85877.0,85876.0,0.2930929]
[1742456883294,0.00204,85877.0,85876.0,0.2930929]
[1742456883887,0.00204,85877.0,85876.0,0.6538929]
[1742456884277,0.03444,85877.0,85876.0,0.6538929]
[1742456884688,0.06584,85877.0,85876.0,0.6538929]
[1742456884884,0.02507659,85877.0,85876.0,0.6538929]
[1742456885082,0.00017474,85878.0,85877.0,0.1164316]
[1742456885282,0.00017474,85878.0,85877.0,0.4295316]
[1742456885486,0.00017474,85878.0,85877.0,0.4926316]
[1742456891291,0.00017474,85878.0,85877.0,0.8534316]
[1742456892400,0.00017474,85878.0,85877.0,0.9657516]
[1742456893904,0.00017474,85878.0,85877.0,0.6857516]
[1742456894105,0.00017474,85878.0,85877.0,0.9057516]
[1742456894507,0.00017474,85878.0,85877.0,2.4057516]
[1742456901709,0.00017474,85878.0,85877.0,2.68427806]
[1742456902111,0.00017474,85878.0,85877.0,2.57195806]
[1742456902304,0.00017474,85878.0,85877.0,2.68427806]
[1742456904609,0.00017474,85878.0,85877.0,3.04507806]
[1742456905218,0.00017474,85878.0,85877.0,2.7665516]
[1742456905525,4e-05,85880.0,85879.0,0.1164289]
[1742456905825,4e-05,85880.0,85879.0,0.3764289]
[1742456906120,4e-05,85880.0,85879.0,0.4396289]
[1742456912332,4e-05,85880.0,85879.0,0.5519489]
[1742456913438,4e-05,85880.0,85879.0,0.2919489]
[1742456913822,4e-05,85880.0,85879.0,0.1796289]
[1742456914029,4e-05,85880.0,85879.0,0.2919489]
[1742456916139,4e-05,85880.0,85879.0,0.57069933]
[1742456917938,4e-05,85880.0,85879.0,0.61069933]
[1742456918134,4e-05,85880.0,85879.0,0.64239933]